[Event "1000 GM Labor Day Super Swiss 2024"]
[Site "San Jose"]
[Date "2024.09.01"]
[Round "4.12"]
[White "Kiewra, Keaton"]
[Black "Wu, Derek"]
[Result "0-1"]
[Annotator "TA"]
[ECO "C77"]
[WhiteElo "2287"]
[BlackElo "2278"]
[PlyCount "144"]
[EventDate "2024.08.30"]
[EventType "swiss"]
[EventCountry "USA"]
[SourceTitle "playchess.com"]
[Source "ChessBase"]
[SourceQuality "1"]
[TimeControl "5400+30"]

{[%evp 13,144,0,5,-5,0,-16,-18,-25,-24,-14,43,0,18,0,12,0,0,-7,0,-15,-9,-49,0,0,0,0,31,-8,0,-31,0,0,0,-93,-104,-112,-76,-116,-105,-89,-67,-60,-63,-70,-39,-76,-33,-28,-23,-14,33,51,145,133,259,251,266,204,231,164,149,84,99,88,100,0,0,0,0,0,0,0,0,0,8,8,8,7,20,16,21,0,0,0,0,0,24,6,13,0,0,0,0,0,0,0,0,0,0,-75,-97,-100,-14,-668,-316,-565,-581,-599,-599,-572,-557,-777,-774,-847,-677,-1798,-1866,-1381,-993,-5393,-4837,-5197,-4060,-5118,-4783,-29971,-12821,-29981,-29982,-29982,-29983,-29980,-29981]} 1. e4 {[%emt 0:15:05]} e5 {[%emt 0:00:18]} 2. Nf3 {[%emt 0:00:06]} Nc6 {[%emt 0:00:11]} 3. Bb5 {[%emt 0:00:27]} a6 {[%emt 0:00:12]} 4. Ba4 {[%emt 0:00:06]} Nf6 {[%emt 0:00:10]} 5. Bxc6 {[%emt 0:00:07]} dxc6 {[%emt 0:00:03]} 6. d3 {[%emt 0:00:06]} Bd6 {[%emt 0:00:05]} 7. Nbd2 {[%emt 0:00:10]} Be6 {[%emt 0:00:15]} 8. b3 {[%emt 0:00:42]} Nd7 {[%emt 0:00:25]} 9. Nc4 {[%emt 0:01:11]} Bxc4 {[%emt 0:00:12]} 10. bxc4 {[%emt 0:00:36] The position is equal.} Qe7 {[%emt 0:00:26]} 11. O-O {[%emt 0:01:14]} O-O-O {[%emt 0:03:15]} (11... O-O $11) 12. Bd2 {[%emt 0:07:04]} f6 {[%emt 0:04:00]} 13. a4 {[%emt 0:01:06]} g5 {[%emt 0:07:27]} 14. Qb1 {[%emt 0:01:31]} Kb8 {[%emt 0:09:38]} 15. Ra2 {[%emt 0:10:14]} Ka8 {[%emt 0:02:04]} 16. Rb2 {[%emt 0:05:37]} Rb8 {[%emt 0:00:26]} 17. c3 {[%emt 0:03:54]} Qe6 {[%emt 0:05:34]} (17... Bc5 $15) 18. Be3 $11 {[%emt 0:02:35]} h5 {[%emt 0:04:47]} 19. Nd2 {[%emt 0:02:44]} c5 {[%emt 0:24:37]} 20. Rb3 {[%emt 0:11:28]} Be7 {[%emt 0:03:24]} 21. Qb2 {[%emt 0:02:02]} Qc6 {[%emt 0:02:53][%cal Og5g4]} 22. Rb1 {[%emt 0:05:59]} Rhd8 {[%emt 0:00:51][%cal Od7f8]} 23. Rb5 {[%emt 0:03:01]} Nf8 $17 {[%emt 0:01:43][%cal Of8e6]} (23... axb5 $2 24. axb5 $18) 24. Qc2 {[%emt 0:06:45][%cal Od2f3]} Ne6 {[%emt 0:04:54][%cal Oc6d7]} (24... axb5 $2 25. axb5 $18) 25. Nb3 {[%emt 0:01:00]} b6 {[%emt 0:06:01][%cal Oc6d7] Prevents Na5} (25... axb5 $2 26. axb5 $18) 26. Nc1 {[%emt 0:00:14]} Kb7 {[%emt 0:01:56] Black is more active.} (26... axb5 $2 27. axb5 Kb7 28. bxc6+ $18) 27. R5b2 {[%emt 0:00:48]} a5 $1 {[%emt 0:00:24]} 28. Rb5 {[%emt 0:00:35]} Kc8 {[%emt 0:00:55]} 29. Qe2 {[%emt 0:05:05]} Ng7 {[%emt 0:01:30]} 30. Nb3 {[%emt 0:03:03]} Ra8 {[%emt 0:00:19]} 31. Rd1 {[%emt 0:00:19]} (31. d4 {seems wilder.} exd4 32. cxd4 Qxe4 33. Nd2) 31... Rd7 {[%emt 0:02:27]} (31... Ne8 $11 {feels stronger.}) 32. h3 {[%emt 0:03:42]} Kd8 {[%emt 0:04:07]} (32... Ra6 $14) 33. d4 $16 {[%emt 0:01:35]} cxd4 {[%emt 0:00:06]} (33... Ke8 $16) 34. cxd4 $18 {[%emt 0:00:06]} exd4 {[%emt 0:01:04]} (34... Qxe4 35. dxe5 Rxd1+ 36. Qxd1+ Kc8 37. Nd2 (37. exf6 Bxf6 38. Bxb6 Rb8 $18)) 35. Rxd4 {[%emt 0:00:46] Strongly threatening e5.} Rxd4 {[%emt 0:01:26]} 36. Bxd4 {[%emt 0:00:11] aiming for c5.} Ne6 {[%emt 0:01:36]} 37. c5 {[%emt 0:03:11]} (37. Qxh5 Nxd4 38. Rd5+ (38. Nxd4 Qxe4 39. Rd5+ Bd6 $14) 38... Kc8 39. Nxd4 Qxc4) (37. e5 $142 Nf4 38. Qf1) 37... bxc5 $16 {[%emt 0:00:44]} 38. Bc3 {[%emt 0:00:33]} (38. Nxa5 $2 Rxa5 39. Rxa5 cxd4 $19 (39... Nxd4 $2 40. Qxh5 Kd7 41. Qg6 $19)) 38... Nf4 {[%emt 0:01:20]} 39. Qc4 {[%emt 0:02:45]} ({White should try} 39. Qc2 $16) 39... Qe6 $11 {[%emt 0:00:35]} 40. Qxe6 {[%emt 0:00:07]} Nxe6 {[%emt 0:00:01]} 41. Rxa5 {[%emt 0:00:14]} Rb8 {[%emt 0:00:40]} 42. Rb5 {[%emt 0:00:40]} Rxb5 {[%emt 0:01:09]} 43. axb5 {[%emt 0:00:02][%mdl 4096] Endgame. KBN-KBN} Kd7 {[%emt 0:00:15]} 44. Kf1 {[%emt 0:01:35]} Kd6 {[%emt 0:00:53]} 45. Na5 {[%emt 0:00:19]} Nf4 {[%emt 0:03:06]} 46. Nc4+ {[%emt 0:00:37]} Ke6 {[%emt 0:00:06]} 47. h4 {[%emt 0:01:12]} gxh4 {[%emt 0:00:42]} 48. Bd2 {[%emt 0:00:06]} Ng6 {[%emt 0:01:23]} 49. Ke2 {[%emt 0:00:04]} Ne5 {[%emt 0:00:49]} 50. Ne3 {[%emt 0:00:04][%mdl 1024] White has compensation.} Bd8 {[%emt 0:00:48]} 51. f4 {[%emt 0:00:25]} Nf7 {[%emt 0:00:32]} 52. Kd3 {[%emt 0:01:14]} Nd6 {[%emt 0:00:13] Dodges Nf5} 53. f5+ {[%emt 0:01:23]} Kd7 {[%emt 0:00:26]} 54. Nc4 {[%emt 0:00:39]} Nxb5 {[%emt 0:00:14]} 55. Bh6 {[%emt 0:00:55]} Nd6 {[%emt 0:01:24]} 56. Bf8 {[%emt 0:00:36] [#]} (56. Nxd6 $11 {remains equal.} Kxd6 (56... cxd6 57. Bd2 $11) 57. Bf4+ Kd7 58. Bd2) 56... Be7 $1 $17 {[%emt 0:00:35]} 57. Bh6 {[%emt 0:00:10] [#]} Kc6 {[%emt 0:00:42]} (57... Nf7 $1 $17 {[%cal Rf7h6]} 58. Be3 Ng5) 58. Bg7 {[%emt 0:00:36][%mdl 8192]} (58. Bd2 $11) 58... Kb5 {[%emt 0:01:08]} (58... Nxc4 $142 59. Kxc4 Kd6) 59. Ne3 $2 {[%emt 0:00:04]} (59. Nd2) 59... c4+ $19 {[%emt 0:00:50]} 60. Kd4 {[%emt 0:00:02]} Ne8 {[%emt 0:00:14] Hoping for ...Bc5+.} (60... c3 61. Kxc3 Nxe4+ 62. Kd4 $19) 61. Bh6 {[%emt 0:00:15]} Bc5+ {[%emt 0:00:54]} 62. Kd5 {[%emt 0:00:08]} Nd6 {[%emt 0:00:30] Threatens to win with ...c6+.} 63. e5 {[%emt 0:01:21]} fxe5 {[%emt 0:00:05]} 64. Ke6 {[%emt 0:01:22] Dodges Nf7} Bxe3 {[%emt 0:01:01]} 65. Bxe3 {[%emt 0:00:06] KB-KN} e4 {[%emt 0:00:43] ...c3 would now be deadly.} 66. f6 {[%emt 0:00:40]} c3 {[%emt 0:00:25]} 67. Kd5 {[%emt 0:00:31]} c2 {[%emt 0:00:38]} 68. Bc1 {[%emt 0:00:14]} Kb4 {[%emt 0:00:29]} 69. Kc6 {[%emt 0:01:05]} Kc3 {[%emt 0:00:30]} (69... Kc4 $142 70. Kd7 Kd3 71. Bf4 e3 72. Bxd6 c1=Q (72... c1=B 73. f7 $11) 73. f7 e2 (73... cxd6 $2 74. f8=Q $19) 74. f8=Q e1=Q (74... e1=R $2 75. Bxc7 Qd1 76. Bb6 $19) 75. Bh2 Qe4 76. Qf6 c5 (76... Qxg2 $2 77. Qf5+ Qe4 78. Qf6 $19) 77. Kc7 c4 (77... Qxg2 78. Qd6+ Ke2 79. Qe6+ Kf1 80. Qf5+ Qf2 81. Qh3+ Ke2 82. Qe6+ Qce3 83. Qa2+ Kf1 84. Qxf2+ Qxf2 85. Be5 h3 86. Bd6 h2 87. Bxh2 Qxh2+ 88. Kc8 Qd6 89. Kb7 c4 90. Ka8 c3 91. Ka7 c2 92. Kb7 c1=Q 93. Ka8 Qcc6+ 94. Ka7 Qdc7#) 78. Qb6 c3 (78... Qxg2 $2 79. Be5 $19) 79. g3 Qd2 80. Kc8 c2 (80... Qxh2 {is a self mate.} 81. Qd8+ Kc2 82. Qg8 Qa8+ 83. Kc7 Qxg8 84. Kd7 Qd2+ 85. Kc7 Qc4+ 86. Kb7 Qd7+ 87. Kb8 Qg8#) 81. Bg1 Qe8+ (81... c1=B 82. Qc5 hxg3 83. Bd4 Qe6+ 84. Kd8 Ke4 85. Kc7 Qxd4 86. Qxd4+ Kxd4 87. Kb8 g2 88. Kc7 g1=Q 89. Kb7 Qg7+ 90. Kb8 Qeg8#) 82. Qd8+ Qxd8+ 83. Kxd8 c1=Q (83... c1=B {leads to mate.} 84. Bb6 Ke4+ 85. Kc8 Qc3+ 86. Bc7 Kd5 87. Kd8 Qc6 88. Kc8 Qa6+ 89. Kb8 Kc6 90. gxh4 Qb7#) 84. gxh4 Qa5+ (84... Qxg1 85. Ke8 Qe2+ 86. Kf7 Qe5 87. Kf8 Qgg7#) 85. Ke8 Qe5+ (85... Qxg1 86. Kd7 Qg7+ 87. Kd6 Qf6+ 88. Kd7 Qad8#) 86. Kf7 Qcc7+ 87. Kg8 Qeg7#) 70. Bf4 {[%emt 0:00:30]} Kd3 {[%emt 0:00:14] Black mates.} 71. Kd7 {[%emt 0:00:14]} Nf7 {[%emt 0:00:55]} 72. Ke7 {[%emt 0:00:15]} e3 {[%emt 0:00:18] What a bad dream for White.   Weighted Error Value: White=0.34/Black=0.24 (precise) .  Loses game:     	White=1     	---        Mistake:       	White=5     	Black=7      Inaccurate:     	White=7     	Black=5      OK:         	White=18    	Black=19     Best:        	White=2     	Black=4      Strong:       	---       	Black=2} 0-1

[Event "1000 GM Labor Day Super Swiss 2024"]
[Site "San Jose"]
[Date "2024.09.01"]
[Round "4.13"]
[White "Bansal, Advay"]
[Black "Champsi, Imran"]
[Result "1-0"]
[Annotator "TA"]
[ECO "B76"]
[WhiteElo "2234"]
[BlackElo "2012"]
[PlyCount "115"]
[EventDate "2024.08.30"]
[EventType "swiss"]
[EventCountry "USA"]
[SourceTitle "playchess.com"]
[Source "ChessBase"]
[SourceQuality "1"]
[TimeControl "5400+30"]

{[%evp 28,114,59,41,41,20,26,4,102,13,0,6,61,69,67,72,75,53,52,54,145,150,154,160,138,120,124,119,170,157,153,71,71,71,71,71,71,63,61,64,71,71,71,71,146,146,152,152,153,153,256,195,120,144,506,491,890,869,869,522,441,93,93,93,94,92,165,62,29981,29982,29984,29985,29987,29988,29988,29989,29989,29990,29990,29991,29991,29987,29989,29990,29991,29991,29992,29993,29999]} 1. e4 {[%emt 0:00:00]} c5 {[%emt 0:01:04]} 2. Nf3 {[%emt 0:00:08]} d6 {[%emt 0:00:01]} 3. d4 {[%emt 0:00:53]} cxd4 {[%emt 0:00:02]} 4. Nxd4 {[%emt 0:00:07]} Nf6 {[%emt 0:00:02]} 5. Nc3 {[%emt 0:00:08]} g6 {[%emt 0:00:27]} 6. f3 {[%emt 0:00:28]} Bg7 {[%emt 0:00:40]} 7. Be3 {[%emt 0:00:09][%cal Bc1e3,Be3d4,Bd4c5][%mdl 32]} O-O {[%emt 0:00:39]} 8. Qd2 {[%emt 0:00:08]} Nc6 {[%emt 1:31:35]} 9. O-O-O {[%emt 0:00:16]} d5 {[%emt 0:00:00]} 10. exd5 {[%emt 0:00:19]} Nxd5 {[%emt 0:00:00]} 11. Nxc6 {[%emt 0:00:03]} bxc6 {[%emt 0:00:00]} 12. Bd4 {[%emt 0:00:02]} e5 {[%emt 0:00:00]} 13. Bc5 {[%emt 0:00:06]} Be6 {[%emt 0:00:00]} 14. Ne4 {[%emt 0:00:34]} Re8 {[%emt 0:00:00]} 15. Bc4 {[%emt 0:07:02]} Qc7 {[%emt 0:00:00]} 16. h4 {[%emt 0:16:11] White wants to play h5.} Rad8 {[%emt 0:00:00]} 17. Qf2 {[%emt 0:08:09][%cal Oh4h5]} Nb6 {[%emt 0:00:00]} (17... Nf4 $11 {keeps the balance.} 18. Bb3 Bxb3 19. axb3 f5) 18. Bb3 {[%emt 0:06:01] White is more active.} (18. Bxe6 $16 Rxe6 19. g4) 18... Bxb3 $11 {[%emt 0:00:00]} 19. axb3 {[%emt 0:00:14]} Nd5 {[%emt 0:00:00]} (19... f5 $11 20. Rxd8 Qxd8) 20. g4 $14 {[%emt 0:05:46][%cal Oh4h5]} (20. Bxa7 $2 Qa5 21. c3 (21. Kb1 $2 Ra8 $19) 21... f5 $19) 20... f5 {[%emt 0:00:00]} 21. gxf5 {[%emt 0:11:04]} gxf5 {[%emt 0:00:00]} 22. Ng3 {[%emt 0:00:29]} Qa5 {[%emt 0:00:00]} 23. Kb1 $1 {[%emt 0:06:31]} (23. Nxf5 $2 Ne3 (23... Qa1+ $2 24. Kd2 $19) 24. Rxd8 (24. Nxe3 $2 Qa1#) (24. Ne7+ $2 Kh8 $19) 24... Qa1+ (24... Nxf5 $2 25. Rxe8+ Kf7 26. Rd1 $18) 25. Kd2 Rxd8+ 26. Bd6 Qxh1 $19) 23... e4 {[%emt 0:00:00]} ({Black should try} 23... Bf8 $14 24. Bxf8 (24. Bxa7 $2 Nb4 $19) 24... Rxf8) 24. Nxf5 $16 {[%emt 0:03:34]} (24. Bxa7 $2 Nc3+ (24... e3 $2 25. Rxd5 Rxd5 26. Qe2 $19) 25. bxc3 Bxc3 26. Rxd8 Qa1#) 24... Nb4 {[%emt 0:00:00]} 25. Bxb4 {[%emt 0:02:05]} Qxf5 {[%emt 0:00:00]} 26. Rxd8 {[%emt 0:00:48]} Rxd8 {[%emt 0:00:00]} 27. Rf1 {[%emt 0:07:02]} Qf4 {[%emt 0:03:47]} (27... exf3 $16 28. Qg3 (28. Qxa7 h5 $16) (28. Qxf3 Qxf3 29. Rxf3 Rd4 $16) 28... Qe5 29. Qxe5 (29. Qxf3 $2 Qxb2#) 29... Bxe5 30. Rxf3 Rd1+ 31. Ka2 Rh1) 28. Qxa7 {[%emt 0:04:50]} (28. fxe4 $2 Rd1+ 29. Rxd1 Qxf2 30. Rd8+ Kf7 31. Rd7+ Kg6 (31... Kg8 $2 32. Rd8+ Kf7 33. Rd7+ Kg6 34. h5+ Kh6 35. Bd2+ Kxh5 36. Rxg7 $19) 32. Rd6+ Kh5 $19) 28... exf3 {[%emt 0:04:39]} 29. Rg1 {[%emt 0:00:11]} (29. Qe7 $142 Rb8 (29... Bf6 30. Rg1+) 30. Bc3 Bxc3 31. bxc3) 29... Qd4 {[%emt 0:00:07]} 30. Qxd4 {[%emt 0:01:05]} Rxd4 {[%emt 0:00:01][%mdl 4096] Endgame. KRB-KRB} 31. Bc3 {[%emt 0:00:40]} Rd7 {[%emt 0:00:27]} 32. Bxg7 $1 {[%emt 0:04:03]} Rxg7 {[%emt 0:00:06] KR-KR} 33. Rf1 {[%emt 0:00:04]} Rg3 {[%emt 0:01:21]} 34. Kc1 {[%emt 0:00:21]} Kg7 {[%emt 0:01:43]} 35. Kd2 {[%emt 0:00:22]} Rg2+ {[%emt 0:00:44]} (35... Rh3 $142) 36. Kd3 $1 {[%emt 0:00:13]} Rg4 {[%emt 0:00:28]} 37. Rxf3 {[%emt 0:00:47]} Rxh4 {[%emt 0:00:01] [#]} 38. Rf5 $1 {[%emt 0:00:46]} Rh6 {[%emt 0:00:26]} (38... Rb4 $16 {was worth a try.} 39. Rc5 Rb6) 39. c4 {[%emt 0:01:50]} Rh3+ {[%emt 0:00:30]} 40. Kc2 {[%emt 0:00:10] b4 would now be deadly.} Re3 $2 {[%emt 0:00:19][%mdl 8192]} (40... h5 $16 {is a better chance.} 41. Rg5+ Kf7) 41. b4 $18 {[%emt 0:00:22]} Kg6 {[%emt 0:00:12]} (41... Re8 $142 42. Rg5+ Kf7) 42. Rc5 {[%emt 0:05:59]} Re6 {[%emt 0:00:01]} 43. b5 {[%emt 0:00:09]} cxb5 {[%emt 0:00:06]} 44. Rxb5 {[%emt 0:00:39]} (44. cxb5 $18 h5 45. Kb3) 44... h5 $16 {[%emt 0:00:39]} 45. c5 {[%emt 0:01:47] Threatens to win with Rb6.} h4 {[%emt 0:00:51]} 46. Rb3 {[%emt 0:00:37] And now Rh3 would win.} Kf5 {[%emt 0:01:51]} (46... Rc6 $16 {might work better.}) 47. Rc3 {[%emt 0:00:29]} (47. Rh3 $18 Kg4 48. Rh1) 47... Ke5 $2 {[%emt 0:00:40][%mdl 8192] [#]} (47... Re8 $14) 48. c6 $1 {[%emt 0:01:45] White mates.} h3 {[%emt 0:00:13]} 49. c7 {[%emt 0:00:37]} (49. Rxh3 Rxc6+ 50. Kb1 Kd4 $11) 49... h2 {[%emt 0:00:03]} 50. c8=Q {[%emt 0:01:10]} (50. c8=R h1=Q (50... h1=R 51. b4 $14) 51. Re3+ Kd6 52. Rxe6+ Kxe6 $19) 50... h1=Q {[%emt 0:00:03] KQR-KQR} 51. Re3+ {[%emt 0:00:06]} Kd4 {[%emt 0:00:25]} 52. Qc3+ {[%emt 0:01:22]} Kd5 {[%emt 0:00:02]} 53. Qd3+ {[%emt 0:00:22]} Kc5 {[%emt 0:00:05]} 54. Rxe6 {[%emt 0:00:04]} Qh2+ {[%emt 0:00:18]} 55. Re2 {[%emt 0:00:07]} Qh5 {[%emt 0:01:12]} 56. Qc3+ {[%emt 0:00:12]} Kb5 {[%emt 0:00:12]} 57. Re5+ {[%emt 0:00:05]} Ka4 {[%emt 0:00:07]} 58. Qa5# {[%emt 0:00:09] Weighted Error Value: White=0.31/Black=0.40.  Loses game:     	---       	Black=2      Mistake:       	White=3     	Black=8      OK:         	White=12    	Black=10     Best:        	White=4     	Black=5      Strong:       	White=5     	---} 1-0

[Event "1000 GM Labor Day Super Swiss 2024"]
[Site "San Jose"]
[Date "2024.09.01"]
[Round "4.14"]
[White "Guo, Ethan"]
[Black "Piasetski, Leon"]
[Result "1/2-1/2"]
[Annotator "TA"]
[ECO "C10"]
[WhiteElo "2211"]
[BlackElo "2167"]
[PlyCount "36"]
[EventDate "2024.08.30"]
[EventType "swiss"]
[EventCountry "USA"]
[SourceTitle "playchess.com"]
[Source "ChessBase"]
[SourceQuality "1"]
[TimeControl "5400+30"]

{[%evp 12,36,33,43,20,27,25,19,30,24,26,18,16,32,26,22,51,21,34,16,19,12,15,15,25,0,0]} 1. e4 {[%emt 0:00:01]} e6 {[%emt 0:03:29]} 2. d4 {[%emt 0:00:05]} d5 {[%emt 0:00:08]} 3. Nd2 {[%emt 0:00:01]} dxe4 {[%emt 0:00:38]} 4. Nxe4 {[%emt 0:00:04]} Nd7 {[%emt 0:00:19]} 5. Nf3 {[%emt 0:00:05]} Ngf6 {[%emt 0:00:07]} 6. Nxf6+ {[%emt 0:00:03]} Nxf6 {[%emt 0:00:09]} 7. g3 {[%emt 1:33:41]} b6 {[%emt 0:01:09]} 8. Bb5+ {[%emt 0:00:00]} Bd7 {[%emt 0:00:12]} 9. Be2 {[%emt 0:00:00]} Bd6 {[%emt 0:03:43]} 10. O-O {[%emt 0:00:00]} O-O {[%emt 0:04:38]} 11. Ne5 {[%emt 0:00:00]} Bxe5 {[%emt 0:00:42]} 12. dxe5 {[%emt 0:00:00]} Nd5 {[%emt 0:00:22]} 13. c4 {[%emt 0:00:00]} Ne7 {[%emt 0:00:24]} 14. b3 {[%emt 0:00:00]} Bc6 {[%emt 0:07:04]} 15. Qxd8 {[%emt 0:00:00]} Rfxd8 {[%emt 0:01:46]} 16. Bg5 {[%emt 0:00:00]} Kf8 {[%emt 0:01:37]} 17. Rfd1 {[%emt 0:00:00]} h6 {[%emt 0:00:12]} 18. Bxe7+ {[%emt 0:00:00]} Kxe7 {[%emt 0:00:07] Weighted Error Value: White=0.07 (flawless) /Black=0.02 (flawless) .  Inaccurate:     	White=1     	---        OK:         	White=6     	Black=5      Best:        	---       	Black=1} 1/2-1/2

[Event "1000 GM Labor Day Super Swiss 2024"]
[Site "San Jose"]
[Date "2024.09.01"]
[Round "4.15"]
[White "Deng, Henry"]
[Black "Gui, Suyuan"]
[Result "1-0"]
[Annotator "TA"]
[ECO "B18"]
[WhiteElo "2338"]
[BlackElo "2033"]
[PlyCount "116"]
[EventDate "2024.08.30"]
[EventType "swiss"]
[EventCountry "USA"]
[SourceTitle "playchess.com"]
[Source "ChessBase"]
[SourceQuality "1"]
[TimeControl "5400+30"]

{[%evp 9,116,8,12,8,23,26,42,30,30,34,27,33,28,25,27,29,28,23,31,20,30,12,14,8,7,7,7,8,26,35,33,28,43,39,35,29,33,25,28,22,35,40,53,26,143,141,146,149,145,144,325,310,384,368,374,284,353,205,417,403,404,405,398,396,465,466,465,453,474,479,516,506,513,491,462,450,526,543,639,619,715,489,463,454,558,509,606,633,693,681,903,844,884,734,1191,1127,1800,1431,4950,5314,5494,7122,29979,29980,29980,29979,29979,29979,29987]} 1. e4 {[%emt 0:00:44]} c6 {[%emt 0:00:07]} 2. d4 {[%emt 0:00:13]} d5 {[%emt 0:00:08]} 3. Nd2 {[%emt 0:00:05]} dxe4 {[%emt 0:00:05]} 4. Nxe4 {[%emt 0:00:03]} Bf5 {[%emt 0:00:14]} 5. Qf3 {[%emt 0:00:58]} e6 {[%emt 0:00:41]} 6. Ne2 {[%emt 0:00:13]} Nd7 {[%emt 0:00:23]} 7. N2g3 {[%emt 0:00:24]} Bxe4 {[%emt 0:00:33]} 8. Nxe4 {[%emt 0:00:57] White is slightly better.} Ndf6 {[%emt 0:00:10]} 9. c3 {[%emt 0:01:30]} Nxe4 {[%emt 0:00:37]} 10. Qxe4 {[%emt 0:00:04]} Nf6 {[%emt 0:00:09]} 11. Qf3 {[%emt 0:00:37]} Qd5 {[%emt 0:00:35]} 12. Be2 {[%emt 0:01:53]} Be7 {[%emt 0:03:27][%cal Bf8e7,Be7f6,Bf6e5][%mdl 32]} 13. O-O {[%emt 0:03:28]} Qxf3 {[%emt 0:03:44]} 14. Bxf3 {[%emt 0:00:10]} O-O {[%emt 0:00:20]} 15. Be3 {[%emt 0:04:40]} Nd5 {[%emt 0:01:57]} 16. Bd2 {[%emt 0:01:47]} Rfd8 {[%emt 0:01:51]} 17. Rfd1 {[%emt 0:06:53]} Bf6 {[%emt 0:07:47]} 18. Kf1 {[%emt 0:05:02]} e5 {[%emt 0:03:27]} 19. dxe5 {[%emt 0:04:12]} Bxe5 {[%emt 0:00:13]} 20. g3 {[%emt 0:04:00]} Nb6 {[%emt 0:04:35]} 21. Be2 {[%emt 0:02:59]} Bf6 {[%emt 0:05:53]} 22. Rac1 {[%emt 0:05:20]} Rd7 {[%emt 0:05:23]} 23. Bg4 {[%emt 0:10:32]} Rdd8 {[%emt 0:05:20]} 24. b3 {[%emt 0:02:13]} g6 {[%emt 0:04:21]} 25. c4 {[%emt 0:03:37][%cal Bc3c4,Bc4c5][%mdl 32]} h5 {[%emt 0:06:45]} 26. Bf3 {[%emt 0:06:10]} Nd7 {[%emt 0:04:07]} (26... a5 $11 {keeps the balance.}) 27. Ba5 $16 {[%emt 0:01:37] A strong pair of Bishops.} Nb6 {[%emt 0:02:53]} 28. c5 {[%emt 0:03:26]} Rxd1+ {[%emt 0:01:25]} 29. Rxd1 {[%emt 0:00:05]} Nc8 {[%emt 0:01:15] [#] This costs Black the game.} (29... Nd5 $16 30. Bxd5 cxd5) 30. Rd7 $18 {[%emt 0:01:49]} Be7 {[%emt 0:06:05]} 31. Rxb7 {[%emt 0:01:24]} Bxc5 {[%emt 0:00:14]} 32. Bxc6 {[%emt 0:00:07]} Nb6 {[%emt 0:01:20]} 33. Rc7 {[%emt 0:05:34]} (33. Bf3 $142 {Threatens to win with Rc7.} h4 34. gxh4) 33... Rd8 $2 {[%emt 0:01:04]} (33... Bd6) 34. Bf3 {[%emt 0:02:02]} Bd4 {[%emt 0:02:09]} 35. Rxa7 {[%emt 0:01:56]} Rc8 {[%emt 0:00:24]} 36. Re7 {[%emt 0:01:43]} ({Much less strong is} 36. Rb7 Rc2 37. Be2 (37. Bxb6 Rxf2+ 38. Ke1 Bxb6 $18) (37. Rb8+ Kg7 $18) 37... Nc8 $18) 36... Rc1+ {[%emt 0:01:16]} 37. Re1 {[%emt 0:00:38]} Rc2 {[%emt 0:00:07]} 38. Re2 {[%emt 0:00:04]} Rc1+ {[%emt 0:00:35]} 39. Kg2 {[%emt 0:00:08]} Nc8 {[%emt 0:00:34]} 40. Bd2 {[%emt 0:00:43]} Rc7 {[%emt 0:01:48]} 41. Bf4 {[%emt 0:00:33]} Rc3 {[%emt 0:00:39]} 42. Rd2 {[%emt 0:01:59]} Bb6 {[%emt 0:00:36]} 43. Be5 {[%emt 0:00:37]} Rc1 {[%emt 0:00:24]} 44. Bb2 {[%emt 0:00:11]} Re1 {[%emt 0:00:52]} 45. Re2 {[%emt 0:00:12]} Rxe2 {[%emt 0:00:09]} 46. Bxe2 {[%emt 0:00:01][%mdl 4096] Endgame. KBB-KBN} Nd6 {[%emt 0:00:11]} 47. Bd3 {[%emt 0:00:13]} h4 {[%emt 0:00:13][%cal Bh5h4,Bh4h3][%mdl 32]} 48. b4 {[%emt 0:00:11]} Nc8 {[%emt 0:00:09]} 49. a4 {[%emt 0:00:03][%cal Ba2a4,Ba4a5][%mdl 32]} Ne7 {[%emt 0:00:03]} 50. Be4 {[%emt 0:00:15]} f5 {[%emt 0:00:07]} 51. Bf3 {[%emt 0:00:14]} g5 {[%emt 0:00:05][%cal Bg6g5,Bg5g4][%mdl 32]} 52. a5 {[%emt 0:00:36]} h3+ {[%emt 0:00:20]} 53. Kf1 {[%emt 0:00:08]} Ba7 {[%emt 0:00:03]} 54. b5 {[%emt 0:00:04][%cal Bb4b5,Bb5b6][%mdl 32]} g4 {[%emt 0:00:07]} 55. Bh1 {[%emt 0:00:11] [#] b6 would kill now.} Nc8 {[%emt 0:00:09]} 56. Bb7 {[%emt 0:00:09] White mates.} Nd6 {[%emt 0:00:03]} 57. Bd5+ {[%emt 0:00:05]} Kf8 {[%emt 0:00:04]} 58. b6 {[%emt 0:00:03]} Bb8 {[%emt 0:00:09] Weighted Error Value: White=0.15 (very precise) /Black=0.31.  Loses game:     	---       	Black=1      Mistake:       	White=1     	Black=2      Inaccurate:     	White=1     	---        OK:         	White=16    	Black=15     Best:        	White=4     	---} 1-0